[Event "November 21 Late 2023"]
[Site "https://www.chess.com"]
[Date "2023.11.21"]
[Round "5"]
[White "Manukyan, Sargis A."]
[Black "Maksimovic, Bojan"]
[Result "1-0"]
[Board "34"]
[TimeControl "180+1"]
[WhiteFideId "13303970"]
[BlackFideId "14408120"]
[WhiteElo "2204"]
[BlackElo "2546"]
[WhiteTeam "ARM"]
[BlackTeam "BIH"]
[WhiteClock "0:00:11"]
[BlackClock "0:00:10"]

1. d4 {[%clk 0:03:00]}  a6 {[%clk 0:03:00]} 2. Nf3 {[%clk 0:02:58]}  e6 {[%clk 0:02:56]} 3. c4 {[%clk 0:02:57]}  b5 {[%clk 0:02:55]} 4. e4 {[%clk 0:02:57]}  bxc4 {[%clk 0:02:54]} 5. Bxc4 {[%clk 0:02:57]}  Bb7 {[%clk 0:02:54]} 6. Nc3 {[%clk 0:02:56]}  Bb4 {[%clk 0:02:54]} 7. Bd3 {[%clk 0:02:54]}  Nf6 {[%clk 0:02:50]} 8. e5 {[%clk 0:02:42]}  Nd5 {[%clk 0:02:34]} 9. Qc2 {[%clk 0:02:41]}  c5 {[%clk 0:02:29]} 10. O-O {[%clk 0:02:34]}  cxd4 {[%clk 0:02:25]} 11. Nxd4 {[%clk 0:02:24]}  Nxc3 {[%clk 0:02:09]} 12. bxc3 {[%clk 0:02:23]}  Bc5 {[%clk 0:02:09]} 13. Rb1 {[%clk 0:02:17]}  Qc7 {[%clk 0:02:09]} 14. Be3 {[%clk 0:01:50]}  Nc6 {[%clk 0:01:17]} 15. Nxe6 {[%clk 0:01:07]}  dxe6 {[%clk 0:01:18]} 16. Bxc5 {[%clk 0:01:07]}  Nxe5 {[%clk 0:01:18]} 17. Be4 {[%clk 0:00:57]}  Qxc5 {[%clk 0:00:55]} 18. Bxb7 {[%clk 0:00:54]}  Ra7 {[%clk 0:00:51]} 19. Qa4+ {[%clk 0:00:50]}  Ke7 {[%clk 0:00:51]} 20. Rfd1 {[%clk 0:00:36]}  Rb8 {[%clk 0:00:21]} 21. Qh4+ {[%clk 0:00:29]}  f6 {[%clk 0:00:20]} 22. Be4 {[%clk 0:00:21]}  Rxb1 {[%clk 0:00:18]} 23. Bxb1 {[%clk 0:00:21]}  h6 {[%clk 0:00:16]} 24. Qg3 {[%clk 0:00:20]}  g5 {[%clk 0:00:17]} 25. h4 {[%clk 0:00:20]}  Rd7 {[%clk 0:00:16]} 26. Re1 {[%clk 0:00:18]}  Rc7 {[%clk 0:00:13]} 27. hxg5 {[%clk 0:00:18]}  hxg5 {[%clk 0:00:14]} 28. Qh3 {[%clk 0:00:17]}  Qxc3 {[%clk 0:00:13]} 29. Qh7+ {[%clk 0:00:17]}  Nf7 {[%clk 0:00:14]} 30. Rd1 {[%clk 0:00:13]}  Qb2 {[%clk 0:00:12]} 31. Bg6 {[%clk 0:00:13]}  Kf8 {[%clk 0:00:09]} 32. Bxf7 {[%clk 0:00:11]}  Rc1 {[%clk 0:00:10]} 33. Qg8+ {[%clk 0:00:10]}  Ke7 {[%clk 0:00:10]} 34. Qe8# {[%clk 0:00:11]} 1-0

[Event "November 21 Late 2023"]
[Site "https://www.chess.com"]
[Date "2023.11.21"]
[Round "5"]
[White "Van Dael, Siem"]
[Black "Yeletsky, Ivan"]
[Result "0-1"]
[Board "35"]
[TimeControl "180+1"]
[WhiteFideId "1049771"]
[BlackFideId "24180327"]
[WhiteElo "2252"]
[BlackElo "2358"]
[WhiteTeam "NED"]
[BlackTeam "RUS"]
[WhiteClock "0:00:01"]
[BlackClock "0:00:11"]

1. e4 {[%clk 0:03:00]}  e5 {[%clk 0:02:59]} 2. Nf3 {[%clk 0:02:58]}  Nf6 {[%clk 0:02:59]} 3. Nxe5 {[%clk 0:02:55]}  d6 {[%clk 0:02:59]} 4. Nf3 {[%clk 0:02:53]}  Nxe4 {[%clk 0:03:00]} 5. Bd3 {[%clk 0:02:54]}  d5 {[%clk 0:02:58]} 6. Qe2 {[%clk 0:02:52]}  Qe7 {[%clk 0:02:52]} 7. O-O {[%clk 0:02:50]}  Nc5 {[%clk 0:02:51]} 8. Re1 {[%clk 0:02:38]}  Qxe2 {[%clk 0:02:38]} 9. Bxe2 {[%clk 0:02:38]}  Be7 {[%clk 0:02:28]} 10. Nc3 {[%clk 0:02:34]}  c6 {[%clk 0:02:27]} 11. Bf1 {[%clk 0:02:23]}  Bf5 {[%clk 0:02:22]} 12. d3 {[%clk 0:02:21]}  Nbd7 {[%clk 0:02:17]} 13. Nd4 {[%clk 0:02:20]}  Bg6 {[%clk 0:02:13]} 14. Bf4 {[%clk 0:02:19]}  Kd8 {[%clk 0:02:03]} 15. b4 {[%clk 0:02:08]}  Bf6 {[%clk 0:02:03]} 16. Nce2 {[%clk 0:01:48]}  Ne6 {[%clk 0:02:03]} 17. Nxe6+ {[%clk 0:01:48]}  fxe6 {[%clk 0:02:03]} 18. Rab1 {[%clk 0:01:48]}  Nb6 {[%clk 0:01:52]} 19. Bg3 {[%clk 0:01:40]}  e5 {[%clk 0:01:52]} 20. Nc1 {[%clk 0:01:20]}  Re8 {[%clk 0:01:46]} 21. Nb3 {[%clk 0:01:20]}  Na4 {[%clk 0:01:45]} 22. Nc5 {[%clk 0:01:17]}  b5 {[%clk 0:01:33]} 23. Nxa4 {[%clk 0:01:14]}  bxa4 {[%clk 0:01:34]} 24. a3 {[%clk 0:01:14]}  Kd7 {[%clk 0:01:29]} 25. Rbd1 {[%clk 0:01:08]}  a5 {[%clk 0:01:14]} 26. c3 {[%clk 0:01:05]}  e4 {[%clk 0:01:10]} 27. d4 {[%clk 0:00:57]}  axb4 {[%clk 0:01:10]} 28. cxb4 {[%clk 0:00:55]}  Bh5 {[%clk 0:01:07]} 29. Be2 {[%clk 0:00:48]}  Bxe2 {[%clk 0:01:06]} 30. Rxe2 {[%clk 0:00:49]}  h5 {[%clk 0:00:59]} 31. Rc2 {[%clk 0:00:49]}  g5 {[%clk 0:00:55]} 32. h3 {[%clk 0:00:38]}  g4 {[%clk 0:00:55]} 33. hxg4 {[%clk 0:00:33]}  hxg4 {[%clk 0:00:56]} 34. b5 {[%clk 0:00:27]}  cxb5 {[%clk 0:00:53]} 35. Rc5 {[%clk 0:00:26]}  Ke6 {[%clk 0:00:54]} 36. Rxb5 {[%clk 0:00:24]}  Rac8 {[%clk 0:00:53]} 37. Rb4 {[%clk 0:00:20]}  Rc4 {[%clk 0:00:43]} 38. Rb6+ {[%clk 0:00:08]}  Kf5 {[%clk 0:00:42]} 39. Rd6 {[%clk 0:00:05]}  Rec8 {[%clk 0:00:07]} 40. Rxd5+ {[%clk 0:00:05]}  Kg6 {[%clk 0:00:07]} 41. Rc5 {[%clk 0:00:02]}  R8xc5 {[%clk 0:00:04]} 42. dxc5 {[%clk 0:00:03]}  Rxc5 {[%clk 0:00:05]} 43. Bd6 {[%clk 0:00:03]}  Rc2 {[%clk 0:00:04]} 44. Bb4 {[%clk 0:00:03]}  Kf5 {[%clk 0:00:04]} 45. Re1 {[%clk 0:00:01]}  Bd4 {[%clk 0:00:04]} 46. Rf1 {[%clk 0:00:02]}  g3 {[%clk 0:00:03]} 47. Kh1 {[%clk 0:00:02]}  gxf2 {[%clk 0:00:03]} 48. Kh2 {[%clk 0:00:02]}  e3 {[%clk 0:00:03]} 49. g4+ {[%clk 0:00:02]}  Ke4 {[%clk 0:00:03]} 50. Kg2 {[%clk 0:00:02]}  e2 {[%clk 0:00:04]} 51. Rxf2 {[%clk 0:00:02]}  Bxf2 {[%clk 0:00:04]} 52. Kxf2 {[%clk 0:00:03]}  Kd3 {[%clk 0:00:04]} 53. g5 {[%clk 0:00:02]}  Rc1 {[%clk 0:00:04]} 54. Be1 {[%clk 0:00:01]}  Rc5 {[%clk 0:00:05]} 55. g6 {[%clk 0:00:02]}  Rf5+ {[%clk 0:00:06]} 56. Kg3 {[%clk 0:00:02]}  Rg5+ {[%clk 0:00:07]} 57. Kf4 {[%clk 0:00:02]}  Rxg6 {[%clk 0:00:07]} 58. Bb4 {[%clk 0:00:02]}  Rg1 {[%clk 0:00:08]} 59. Ke5 {[%clk 0:00:03]}  e1=Q+ {[%clk 0:00:08]} 60. Bxe1 {[%clk 0:00:04]}  Rxe1+ {[%clk 0:00:09]} 61. Kd5 {[%clk 0:00:05]}  Ra1 {[%clk 0:00:09]} 62. Kc5 {[%clk 0:00:05]}  Rxa3 {[%clk 0:00:10]} 63. Kb4 {[%clk 0:00:01]}  Ra1 {[%clk 0:00:11]} 0-1

[Event "November 21 Late 2023"]
[Site "https://www.chess.com"]
[Date "2023.11.21"]
[Round "5"]
[White "Hajiyev, Kanan"]
[Black "Szpar, Milosz"]
[Result "0-1"]
[Board "37"]
[TimeControl "180+1"]
[WhiteFideId "13404148"]
[BlackFideId "1184989"]
[WhiteElo "2102"]
[BlackElo "2446"]
[WhiteTeam "AZE"]
[BlackTeam "POL"]
[WhiteClock "0:00:19"]
[BlackClock "0:01:38"]

1. d4 {[%clk 0:02:47]}  d5 {[%clk 0:02:58]} 2. Nf3 {[%clk 0:02:48]}  Nf6 {[%clk 0:02:58]} 3. c4 {[%clk 0:02:49]}  c6 {[%clk 0:02:57]} 4. cxd5 {[%clk 0:02:50]}  cxd5 {[%clk 0:02:56]} 5. Nc3 {[%clk 0:02:50]}  Nc6 {[%clk 0:02:56]} 6. Bg5 {[%clk 0:02:51]}  a6 {[%clk 0:02:55]} 7. e3 {[%clk 0:02:50]}  Ne4 {[%clk 0:02:44]} 8. Nxe4 {[%clk 0:02:48]}  dxe4 {[%clk 0:02:45]} 9. Nd2 {[%clk 0:02:49]}  Qa5 {[%clk 0:02:45]} 10. Bf4 {[%clk 0:02:42]}  e5 {[%clk 0:02:45]} 11. dxe5 {[%clk 0:02:22]}  Be6 {[%clk 0:02:38]} 12. Qc2 {[%clk 0:02:07]}  Rd8 {[%clk 0:02:17]} 13. a3 {[%clk 0:01:47]}  Bb3 {[%clk 0:01:57]} 14. Qc1 {[%clk 0:01:22]}  Rxd2 {[%clk 0:01:38]} 15. Qxd2 {[%clk 0:00:19]}  Bb4 {[%clk 0:01:38]} 0-1

[Event "November 21 Late 2023"]
[Site "https://www.chess.com"]
[Date "2023.11.21"]
[Round "5"]
[White "Tatarinov, Dmitry"]
[Black "Kovalevsky, Stanislav"]
[Result "1-0"]
[Board "39"]
[TimeControl "180+1"]
[WhiteFideId "24160067"]
[BlackFideId "13508598"]
[WhiteElo "2344"]
[BlackElo "2092"]
[WhiteTeam "RUS"]
[BlackTeam "FID"]
[WhiteClock "0:01:45"]
[BlackClock "0:00:00"]

1. d4 {[%clk 0:03:00]}  d5 {[%clk 0:02:59]} 2. c4 {[%clk 0:03:00]}  c6 {[%clk 0:02:59]} 3. Nc3 {[%clk 0:03:00]}  Nf6 {[%clk 0:03:00]} 4. e3 {[%clk 0:02:58]}  e6 {[%clk 0:02:57]} 5. Nf3 {[%clk 0:02:58]}  Ne4 {[%clk 0:02:57]} 6. Bd3 {[%clk 0:02:56]}  f5 {[%clk 0:02:57]} 7. Qc2 {[%clk 0:02:57]}  Nd7 {[%clk 0:02:54]} 8. O-O {[%clk 0:02:56]}  Bd6 {[%clk 0:02:54]} 9. b3 {[%clk 0:02:57]}  O-O {[%clk 0:02:52]} 10. Bb2 {[%clk 0:02:57]}  g5 {[%clk 0:02:51]} 11. Ne2 {[%clk 0:02:56]}  Qf6 {[%clk 0:02:37]} 12. Bxe4 {[%clk 0:02:41]}  fxe4 {[%clk 0:02:35]} 13. Nd2 {[%clk 0:02:41]}  h5 {[%clk 0:02:16]} 14. f3 {[%clk 0:02:41]}  exf3 {[%clk 0:01:42]} 15. Rxf3 {[%clk 0:02:40]}  Qg7 {[%clk 0:01:41]} 16. Rxf8+ {[%clk 0:02:35]}  Nxf8 {[%clk 0:01:40]} 17. e4 {[%clk 0:02:35]}  Bd7 {[%clk 0:01:30]} 18. Rf1 {[%clk 0:02:23]}  Be8 {[%clk 0:01:19]} 19. exd5 {[%clk 0:02:09]}  exd5 {[%clk 0:01:18]} 20. Nf3 {[%clk 0:02:05]}  Bg6 {[%clk 0:00:59]} 21. Qd2 {[%clk 0:02:04]}  Re8 {[%clk 0:00:39]} 22. Ne5 {[%clk 0:02:01]}  Be4 {[%clk 0:00:30]} 23. Ng3 {[%clk 0:01:57]}  Bxe5 {[%clk 0:00:10]} 24. dxe5 {[%clk 0:01:53]}  h4 {[%clk 0:00:09]} 25. Nh5 {[%clk 0:01:48]}  Qg6 {[%clk 0:00:05]} 26. Nf6+ {[%clk 0:01:48]}  Kg7 {[%clk 0:00:03]} 27. Nxe8+ {[%clk 0:01:48]}  Qxe8 {[%clk 0:00:04]} 28. Qxg5+ {[%clk 0:01:48]}  Ng6 {[%clk 0:00:04]} 29. e6+ {[%clk 0:01:48]}  Kg8 {[%clk 0:00:00]} 30. Qh6 {[%clk 0:01:45]} 1-0

[Event "November 21 Late 2023"]
[Site "https://www.chess.com"]
[Date "2023.11.21"]
[Round "5"]
[White "Ghasi, Ameet K"]
[Black "Real_taiatai"]
[Result "1-0"]
[Board "41"]
[TimeControl "180+1"]
[WhiteFideId "409200"]
[WhiteElo "2558"]
[BlackElo "2458"]
[WhiteTeam "ENG"]
[WhiteClock "0:00:08"]
[BlackClock "0:00:03"]

1. c4 {[%clk 0:03:00]}  Nf6 {[%clk 0:02:59]} 2. e3 {[%clk 0:03:00]}  g6 {[%clk 0:02:59]} 3. Nf3 {[%clk 0:03:01]}  Bg7 {[%clk 0:03:00]} 4. d4 {[%clk 0:03:01]}  O-O {[%clk 0:03:01]} 5. Nc3 {[%clk 0:03:02]}  d5 {[%clk 0:03:00]} 6. Be2 {[%clk 0:03:03]}  c5 {[%clk 0:02:59]} 7. Kf1 {[%clk 0:03:04]}  cxd4 {[%clk 0:02:58]} 8. exd4 {[%clk 0:03:04]}  Nc6 {[%clk 0:02:58]} 9. h3 {[%clk 0:03:02]}  Be6 {[%clk 0:02:52]} 10. c5 {[%clk 0:03:01]}  Ne4 {[%clk 0:02:48]} 11. Be3 {[%clk 0:02:59]}  f5 {[%clk 0:02:30]} 12. Nxe4 {[%clk 0:02:46]}  fxe4 {[%clk 0:02:29]} 13. Ng5 {[%clk 0:02:43]}  Bf5 {[%clk 0:02:26]} 14. h4 {[%clk 0:02:36]}  h6 {[%clk 0:02:25]} 15. Nh3 {[%clk 0:02:35]}  e5 {[%clk 0:02:23]} 16. dxe5 {[%clk 0:02:35]}  d4 {[%clk 0:02:22]} 17. Bc4+ {[%clk 0:02:31]}  Kh8 {[%clk 0:02:22]} 18. Bc1 {[%clk 0:02:24]}  Nxe5 {[%clk 0:02:22]} 19. Bb3 {[%clk 0:02:21]}  e3 {[%clk 0:02:20]} 20. Nf4 {[%clk 0:02:18]}  Bg4 {[%clk 0:01:56]} 21. Nxg6+ {[%clk 0:02:17]}  Kh7 {[%clk 0:01:34]} 22. Nxf8+ {[%clk 0:02:10]}  Qxf8 {[%clk 0:01:35]} 23. Qe1 {[%clk 0:02:10]}  Kh8 {[%clk 0:01:23]} 24. Bxe3 {[%clk 0:01:51]}  Nd3 {[%clk 0:01:00]} 25. Qd2 {[%clk 0:01:51]}  dxe3 {[%clk 0:01:00]} 26. Qxe3 {[%clk 0:01:52]}  Nxc5 {[%clk 0:00:29]} 27. Bc2 {[%clk 0:01:39]}  Re8 {[%clk 0:00:27]} 28. Qg3 {[%clk 0:01:39]}  Bd4 {[%clk 0:00:17]} 29. f3 {[%clk 0:01:02]}  Bd7 {[%clk 0:00:14]} 30. a4 {[%clk 0:00:49]}  Be6 {[%clk 0:00:14]} 31. b3 {[%clk 0:00:47]}  Bxa1 {[%clk 0:00:13]} 32. Qg6 {[%clk 0:00:45]}  Re7 {[%clk 0:00:13]} 33. h5 {[%clk 0:00:40]}  Bd4 {[%clk 0:00:13]} 34. Rh4 {[%clk 0:00:39]}  Bxb3 {[%clk 0:00:11]} 35. Rxd4 {[%clk 0:00:33]}  Bxc2 {[%clk 0:00:11]} 36. Qxc2 {[%clk 0:00:34]}  Re5 {[%clk 0:00:09]} 37. Qg6 {[%clk 0:00:33]}  Ne6 {[%clk 0:00:07]} 38. Rd7 {[%clk 0:00:32]}  Ng7 {[%clk 0:00:03]} 39. Qxh6+ {[%clk 0:00:31]}  Kg8 {[%clk 0:00:04]} 40. Qg6 {[%clk 0:00:31]}  Re7 {[%clk 0:00:03]} 41. Rd1 {[%clk 0:00:20]}  Qe8 {[%clk 0:00:02]} 42. Qg3 {[%clk 0:00:11]}  Qxh5 {[%clk 0:00:02]} 43. Rd8+ {[%clk 0:00:10]}  Re8 {[%clk 0:00:03]} 44. Rd7 {[%clk 0:00:08]}  Qh6 {[%clk 0:00:04]} 45. Qc7 {[%clk 0:00:07]}  Qc1+ {[%clk 0:00:04]} 46. Qxc1 {[%clk 0:00:07]}  Nf5 {[%clk 0:00:04]} 47. Qg5+ {[%clk 0:00:07]}  Kf8 {[%clk 0:00:04]} 48. Qxf5+ {[%clk 0:00:07]}  Kg8 {[%clk 0:00:03]} 49. Qf7+ {[%clk 0:00:08]} 1-0

[Event "November 21 Late 2023"]
[Site "https://www.chess.com"]
[Date "2023.11.21"]
[Round "5"]
[White "Skvortsov, Andrei"]
[Black "Willy, Stephen"]
[Result "1-0"]
[Board "42"]
[TimeControl "180+1"]
[WhiteFideId "24108600"]
[BlackFideId "30981468"]
[WhiteElo "2357"]
[BlackElo "2139"]
[WhiteTeam "MNE"]
[BlackTeam "USA"]
[WhiteClock "0:00:38"]
[BlackClock "0:00:00"]

1. e4 {[%clk 0:03:00]}  e6 {[%clk 0:02:58]} 2. d4 {[%clk 0:02:59]}  d5 {[%clk 0:02:59]} 3. exd5 {[%clk 0:02:59]}  exd5 {[%clk 0:02:59]} 4. Nf3 {[%clk 0:03:00]}  Bd6 {[%clk 0:02:58]} 5. c4 {[%clk 0:02:50]}  Qe7+ {[%clk 0:02:41]} 6. Be3 {[%clk 0:02:48]}  dxc4 {[%clk 0:02:40]} 7. Bxc4 {[%clk 0:02:47]}  Nf6 {[%clk 0:02:41]} 8. h3 {[%clk 0:02:46]}  Bf4 {[%clk 0:02:37]} 9. Qe2 {[%clk 0:02:43]}  Bxe3 {[%clk 0:02:36]} 10. Qxe3 {[%clk 0:02:44]}  Qxe3+ {[%clk 0:02:18]} 11. fxe3 {[%clk 0:02:45]}  O-O {[%clk 0:02:13]} 12. Nc3 {[%clk 0:02:45]}  Bf5 {[%clk 0:02:00]} 13. O-O-O {[%clk 0:02:43]}  Nc6 {[%clk 0:01:55]} 14. Rhe1 {[%clk 0:02:43]}  Rfe8 {[%clk 0:01:50]} 15. g4 {[%clk 0:02:15]}  Bg6 {[%clk 0:01:47]} 16. a3 {[%clk 0:02:16]}  Re7 {[%clk 0:01:41]} 17. Nh4 {[%clk 0:02:12]}  Rae8 {[%clk 0:01:37]} 18. Nxg6 {[%clk 0:02:11]}  hxg6 {[%clk 0:01:38]} 19. Kd2 {[%clk 0:02:11]}  Nh7 {[%clk 0:01:11]} 20. Nd5 {[%clk 0:02:07]}  Rd7 {[%clk 0:01:08]} 21. Rf1 {[%clk 0:01:58]}  Ng5 {[%clk 0:01:07]} 22. Nf4 {[%clk 0:01:57]}  Ne4+ {[%clk 0:01:00]} 23. Kc2 {[%clk 0:01:55]}  Nd6 {[%clk 0:00:58]} 24. Ba2 {[%clk 0:01:50]}  Rxe3 {[%clk 0:00:47]} 25. Nxg6 {[%clk 0:01:50]}  Re2+ {[%clk 0:00:17]} 26. Kb1 {[%clk 0:01:49]}  Ne4 {[%clk 0:00:17]} 27. Nf4 {[%clk 0:01:21]}  Rh2 {[%clk 0:00:10]} 28. Rfe1 {[%clk 0:01:18]}  Rxd4 {[%clk 0:00:08]} 29. Rxd4 {[%clk 0:01:17]}  Nxd4 {[%clk 0:00:09]} 30. Bxf7+ {[%clk 0:00:56]}  Kxf7 {[%clk 0:00:09]} 31. Rxe4 {[%clk 0:00:57]}  Nc6 {[%clk 0:00:08]} 32. g5 {[%clk 0:00:53]}  Rf2 {[%clk 0:00:06]} 33. h4 {[%clk 0:00:52]}  a5 {[%clk 0:00:03]} 34. b4 {[%clk 0:00:51]}  axb4 {[%clk 0:00:03]} 35. axb4 {[%clk 0:00:51]}  Ne7 {[%clk 0:00:03]} 36. h5 {[%clk 0:00:50]}  Nf5 {[%clk 0:00:03]} 37. Nd5 {[%clk 0:00:46]}  Nd6 {[%clk 0:00:02]} 38. g6+ {[%clk 0:00:45]}  Kf8 {[%clk 0:00:02]} 39. Rd4 {[%clk 0:00:42]}  c6 {[%clk 0:00:01]} 40. Nc7 {[%clk 0:00:40]}  Nf5 {[%clk 0:00:01]} 41. Re4 {[%clk 0:00:39]}  Nd6 {[%clk 0:00:00]} 42. Re6 {[%clk 0:00:38]} 1-0

[Event "November 21 Late 2023"]
[Site "https://www.chess.com"]
[Date "2023.11.21"]
[Round "5"]
[White "Bjelobrk, Igor"]
[Black "D`Arruda, Ricardo D."]
[Result "0-1"]
[Board "51"]
[TimeControl "180+1"]
[WhiteFideId "4300726"]
[BlackFideId "100692"]
[WhiteElo "2319"]
[BlackElo "2535"]
[WhiteTeam "AUS"]
[BlackTeam "ARG"]
[WhiteClock "0:00:02"]
[BlackClock "0:00:13"]

1. d4 {[%clk 0:03:00]}  Nf6 {[%clk 0:02:59]} 2. c4 {[%clk 0:03:00]}  e5 {[%clk 0:02:59]} 3. dxe5 {[%clk 0:03:00]}  Ne4 {[%clk 0:02:59]} 4. Nd2 {[%clk 0:02:44]}  Nc5 {[%clk 0:02:58]} 5. Ngf3 {[%clk 0:02:36]}  Nc6 {[%clk 0:02:58]} 6. g3 {[%clk 0:02:36]}  Qe7 {[%clk 0:02:56]} 7. Bg2 {[%clk 0:02:33]}  Nxe5 {[%clk 0:02:55]} 8. Nxe5 {[%clk 0:02:31]}  Qxe5 {[%clk 0:02:55]} 9. O-O {[%clk 0:02:32]}  g6 {[%clk 0:02:51]} 10. Nf3 {[%clk 0:02:31]}  Qd6 {[%clk 0:02:39]} 11. Bf4 {[%clk 0:02:30]}  Qxd1 {[%clk 0:02:37]} 12. Raxd1 {[%clk 0:02:31]}  d6 {[%clk 0:02:37]} 13. b4 {[%clk 0:02:26]}  Ne6 {[%clk 0:02:36]} 14. Be3 {[%clk 0:02:23]}  Bg7 {[%clk 0:02:35]} 15. Nd4 {[%clk 0:02:21]}  Nxd4 {[%clk 0:02:31]} 16. Bxd4 {[%clk 0:02:22]}  O-O {[%clk 0:02:29]} 17. Be3 {[%clk 0:02:11]}  a5 {[%clk 0:02:24]} 18. b5 {[%clk 0:02:11]}  a4 {[%clk 0:01:42]} 19. b6 {[%clk 0:02:10]}  c6 {[%clk 0:01:36]} 20. Rxd6 {[%clk 0:02:08]}  Be6 {[%clk 0:01:36]} 21. Rc1 {[%clk 0:02:05]}  a3 {[%clk 0:01:35]} 22. Bd4 {[%clk 0:02:02]}  Ra4 {[%clk 0:01:31]} 23. Bxg7 {[%clk 0:02:01]}  Kxg7 {[%clk 0:01:31]} 24. c5 {[%clk 0:01:00]}  Bxa2 {[%clk 0:01:28]} 25. Rd7 {[%clk 0:01:00]}  Rb8 {[%clk 0:01:02]} 26. Ra1 {[%clk 0:00:38]}  Be6 {[%clk 0:00:47]} 27. Rd3 {[%clk 0:00:38]}  a2 {[%clk 0:00:46]} 28. f4 {[%clk 0:00:35]}  Rb4 {[%clk 0:00:40]} 29. Rdd1 {[%clk 0:00:35]}  Ra8 {[%clk 0:00:31]} 30. Kf2 {[%clk 0:00:34]}  Ra5 {[%clk 0:00:30]} 31. Rdc1 {[%clk 0:00:33]}  Rb2 {[%clk 0:00:30]} 32. Be4 {[%clk 0:00:32]}  Ra4 {[%clk 0:00:23]} 33. Bd3 {[%clk 0:00:32]}  Ra3 {[%clk 0:00:20]} 34. Ke3 {[%clk 0:00:29]}  Rab3 {[%clk 0:00:18]} 35. Kd4 {[%clk 0:00:25]}  Rb4+ {[%clk 0:00:19]} 36. Kc3 {[%clk 0:00:25]}  R2b3+ {[%clk 0:00:19]} 37. Kd2 {[%clk 0:00:25]}  Rb2+ {[%clk 0:00:18]} 38. Kc3 {[%clk 0:00:25]}  R2b3+ {[%clk 0:00:19]} 39. Kd2 {[%clk 0:00:26]}  Ra3 {[%clk 0:00:19]} 40. Rc2 {[%clk 0:00:23]}  Rb1 {[%clk 0:00:18]} 41. Rc1 {[%clk 0:00:24]}  Rxa1 {[%clk 0:00:16]} 42. Rxa1 {[%clk 0:00:24]}  f5 {[%clk 0:00:14]} 43. Kc2 {[%clk 0:00:21]}  Ra5 {[%clk 0:00:14]} 44. Kb2 {[%clk 0:00:22]}  Rxc5 {[%clk 0:00:14]} 45. Rd1 {[%clk 0:00:21]}  Ra5 {[%clk 0:00:12]} 46. Ka1 {[%clk 0:00:21]}  Kf7 {[%clk 0:00:12]} 47. Rc1 {[%clk 0:00:20]}  Ke7 {[%clk 0:00:12]} 48. Rc2 {[%clk 0:00:20]}  Kd6 {[%clk 0:00:11]} 49. h4 {[%clk 0:00:19]}  Rc5 {[%clk 0:00:11]} 50. Rxc5 {[%clk 0:00:09]}  Kxc5 {[%clk 0:00:12]} 51. e4 {[%clk 0:00:08]}  Kxb6 {[%clk 0:00:12]} 52. exf5 {[%clk 0:00:08]}  gxf5 {[%clk 0:00:12]} 53. g4 {[%clk 0:00:06]}  fxg4 {[%clk 0:00:12]} 54. Bxh7 {[%clk 0:00:06]}  g3 {[%clk 0:00:13]} 55. Be4 {[%clk 0:00:06]}  Bd5 {[%clk 0:00:12]} 56. Bxd5 {[%clk 0:00:04]}  cxd5 {[%clk 0:00:13]} 57. Kxa2 {[%clk 0:00:02]}  g2 {[%clk 0:00:13]} 0-1

[Event "November 21 Late 2023"]
[Site "https://www.chess.com"]
[Date "2023.11.21"]
[Round "5"]
[White "Orphanator2009"]
[Black "De La Colina, Nicolas"]
[Result "1-0"]
[Board "56"]
[TimeControl "180+1"]
[BlackFideId "30946921"]
[WhiteElo "2233"]
[BlackElo "2088"]
[BlackTeam "USA"]
[WhiteClock "0:00:39"]
[BlackClock "0:00:03"]

1. e4 {[%clk 0:03:00]}  c5 {[%clk 0:02:50]} 2. Nf3 {[%clk 0:02:57]}  Nc6 {[%clk 0:02:51]} 3. d4 {[%clk 0:02:58]}  cxd4 {[%clk 0:02:52]} 4. Nxd4 {[%clk 0:02:59]}  Nf6 {[%clk 0:02:53]} 5. Nc3 {[%clk 0:02:59]}  d6 {[%clk 0:02:53]} 6. f3 {[%clk 0:02:56]}  e5 {[%clk 0:02:53]} 7. Nb3 {[%clk 0:02:56]}  Be6 {[%clk 0:02:54]} 8. Be3 {[%clk 0:02:57]}  Be7 {[%clk 0:02:53]} 9. Qd2 {[%clk 0:02:36]}  O-O {[%clk 0:02:50]} 10. O-O-O {[%clk 0:02:36]}  a5 {[%clk 0:02:51]} 11. Bb5 {[%clk 0:02:35]}  Na7 {[%clk 0:02:47]} 12. Be2 {[%clk 0:02:35]}  Nc8 {[%clk 0:02:22]} 13. a4 {[%clk 0:02:22]}  Nb6 {[%clk 0:02:15]} 14. Kb1 {[%clk 0:02:17]}  Nc4 {[%clk 0:02:04]} 15. Bxc4 {[%clk 0:02:04]}  Bxc4 {[%clk 0:02:05]} 16. Nc1 {[%clk 0:01:59]}  Qd7 {[%clk 0:01:48]} 17. b3 {[%clk 0:01:47]}  Be6 {[%clk 0:01:48]} 18. Nb5 {[%clk 0:01:41]}  d5 {[%clk 0:01:33]} 19. Nd3 {[%clk 0:01:41]}  dxe4 {[%clk 0:01:20]} 20. Nxe5 {[%clk 0:01:41]}  Qxd2 {[%clk 0:01:21]} 21. Rxd2 {[%clk 0:01:40]}  exf3 {[%clk 0:01:19]} 22. Nxf3 {[%clk 0:01:39]}  Rac8 {[%clk 0:01:12]} 23. Nfd4 {[%clk 0:01:15]}  Bd5 {[%clk 0:01:07]} 24. Nf5 {[%clk 0:01:01]}  Bb4 {[%clk 0:00:58]} 25. c3 {[%clk 0:00:50]}  Be4+ {[%clk 0:00:42]} 26. Kb2 {[%clk 0:00:50]}  Bxf5 {[%clk 0:00:29]} 27. cxb4 {[%clk 0:00:49]}  Bg6 {[%clk 0:00:08]} 28. bxa5 {[%clk 0:00:49]}  Ne4 {[%clk 0:00:08]} 29. Re2 {[%clk 0:00:48]}  Rfe8 {[%clk 0:00:08]} 30. Bd4 {[%clk 0:00:46]}  Bh5 {[%clk 0:00:07]} 31. Re3 {[%clk 0:00:45]}  Nf6 {[%clk 0:00:06]} 32. Rc1 {[%clk 0:00:40]}  Red8 {[%clk 0:00:06]} 33. Rxc8 {[%clk 0:00:35]}  Rxc8 {[%clk 0:00:07]} 34. Nd6 {[%clk 0:00:36]}  Rd8 {[%clk 0:00:06]} 35. Bxf6 {[%clk 0:00:36]}  gxf6 {[%clk 0:00:05]} 36. Re8+ {[%clk 0:00:36]}  Rxe8 {[%clk 0:00:04]} 37. Nxe8 {[%clk 0:00:37]}  Be2 {[%clk 0:00:02]} 38. Nxf6+ {[%clk 0:00:37]}  Kg7 {[%clk 0:00:03]} 39. Ne4 {[%clk 0:00:38]}  Kg6 {[%clk 0:00:02]} 40. Kc3 {[%clk 0:00:38]}  Bf1 {[%clk 0:00:03]} 41. g3 {[%clk 0:00:37]}  Kf5 {[%clk 0:00:03]} 42. Nf2 {[%clk 0:00:38]}  Ba6 {[%clk 0:00:02]} 43. b4 {[%clk 0:00:38]}  Bf1 {[%clk 0:00:01]} 44. Kd4 {[%clk 0:00:39]}  Ke6 {[%clk 0:00:02]} 45. Kc5 {[%clk 0:00:39]}  Kd7 {[%clk 0:00:02]} 46. Kb6 {[%clk 0:00:40]}  Bg2 {[%clk 0:00:03]} 47. b5 {[%clk 0:00:39]} 1-0